Workbook

Sheet Dashboard
M3: 2020
M4: MARZO | BQ4: Empresa - Sector | BR4: Empresa - Sector
A5: Acumulado a: | B5: =M4 -> MARZO | E5: Datos acumulados | G5: Cuota Negocio / Total ASEMPLEO | J5: =empresa_ccaa!L5 -> iEMPRESA | L5: ¿▲"sin" mi Empresa? | BR5: p.p.
A6: Total | B6: Facturación, € | D6: (a) | E6: =J5 -> iEMPRESA | I6: Cuota de Facturación | J6: ∆ | L6: (b) | M6: ∆ (a-b) | BR6: Puntos porcentuales
B7: 2019 | C7: 2020 | D7: % i.a. | E7: =B7 -> 2019 | F7: =C7 -> 2020 | G7: % i.a. | H7: =E7 -> 2019 | I7: =F7 -> 2020 | J7: Dif.P.P. | L7: % i.a. | M7: Dif.P.P. | BQ7: Dif. Ritmo | BR7: Importancia Relativa | BU7: Empresa
A8: Nacional | B8: =empresa_ccaa!F12 -> 956636711.5 | C8: =empresa_ccaa!G12 -> 926496383.5 | D8: =((C8/B8)-1) -> -0.03150655587 | E8: =empresa_ccaa!K12 -> 0 | F8: =empresa_ccaa!L12 -> 0 | G8: =IF(E8>0,((F8/E8)-1),"n.a.") -> n.a. | H8: =E8/B8 -> 0 | I8: =F8/C8 -> 0 | J8: =(I8-H8)*100 -> 0 | L8: =((C8-F8)/(B8-E8))-1 -> -0.03150655587 | M8: =(D8-L8)*100 -> 0 | BQ8: =IF(G8="n.a.","n.a.",(G8-D8)*100) -> n.a. | BR8: =empresa_ccaa!M12-empresa_ccaa!H12 ->  | BT8: criterio_rank | BU8: peso | BV8: Comunidad | BW8: % i.a. | BX8: Total_Regional
A9: ANDALUCIA | B9: =empresa_ccaa!F13 -> 76824679.4 | C9: =empresa_ccaa!G13 -> 81305455.23 | D9: =((C9/B9)-1) -> 0.0583246928 | E9: =empresa_ccaa!K13 -> 0 | F9: =empresa_ccaa!L13 -> 0 | G9: n.a. | H9: =E9/B9 -> 0 | I9: =F9/C9 -> 0 | J9: =(I9-H9)*100 -> 0 | L9: =((C9-F9)/(B9-E9))-1 -> 0.0583246928 | M9: 0 | BQ9: =IF(G9="n.a.","n.a.",(G9-D9)*100) -> n.a. | BR9: =empresa_ccaa!M13-empresa_ccaa!H13 ->  | BT9: =IF(BU9=$BU$27,1,0) -> 1 | BU9: =I9 -> 0 | BV9: =A9 -> ANDALUCIA | BW9: =G9 -> n.a. | BX9: =D9 -> 0.0583246928
A10: ARAGON | B10: =empresa_ccaa!F14 -> 48071293.51 | C10: =empresa_ccaa!G14 -> 46086017.1 | D10: =((C10/B10)-1) -> -0.0412985851 | E10: =empresa_ccaa!K14 -> 0 | F10: =empresa_ccaa!L14 -> 0 | G10: n.a. | H10: 0 | I10: 0 | J10: 0 | L10: -0.0412985851 | M10: 0 | BQ10: =IF(G10="n.a.","n.a.",(G10-D10)*100) -> n.a. | BR10: =empresa_ccaa!M14-empresa_ccaa!H14 ->  | BT10: =IF(BU10=$BU$27,1,0) -> 1 | BU10: =I10 -> 0 | BV10: =A10 -> ARAGON | BW10: =G10 -> n.a. | BX10: =D10 -> -0.0412985851
A11: ASTURIAS | B11: =empresa_ccaa!F15 -> 16162698.79 | C11: =empresa_ccaa!G15 -> 16469333.91 | D11: 0.01897177724 | E11: =empresa_ccaa!K15 -> 0 | F11: =empresa_ccaa!L15 -> 0 | G11: n.a. | H11: 0 | I11: 0 | J11: 0 | L11: 0.01897177724 | M11: 0 | BQ11: =IF(G11="n.a.","n.a.",(G11-D11)*100) -> n.a. | BR11: =empresa_ccaa!M15-empresa_ccaa!H15 ->  | BT11: =IF(BU11=$BU$27,1,0) -> 1 | BU11: =I11 -> 0 | BV11: =A11 -> ASTURIAS | BW11: =G11 -> n.a. | BX11: =D11 -> 0.01897177724
A12: BALEARES | B12: =empresa_ccaa!F16 -> 3227670.662 | C12: =empresa_ccaa!G16 -> 2518928.315 | D12: -0.2195832295 | E12: =empresa_ccaa!K16 -> 0 | F12: =empresa_ccaa!L16 -> 0 | G12: =IF(E12>0,((F12/E12)-1),"n.a.") -> n.a. | H12: 0 | I12: 0 | J12: 0 | L12: -0.2195832295 | M12: 0 | BQ12: =IF(G12="n.a.","n.a.",(G12-D12)*100) -> n.a. | BR12: =empresa_ccaa!M16-empresa_ccaa!H16 ->  | BT12: =IF(BU12=$BU$27,1,0) -> 1 | BU12: =I12 -> 0 | BV12: =A12 -> BALEARES | BW12: =G12 -> n.a. | BX12: =D12 -> -0.2195832295
A13: CANARIAS | B13: =empresa_ccaa!F17 -> 22692173.91 | C13: =empresa_ccaa!G17 -> 21019112.46 | D13: -0.07372856605 | E13: =empresa_ccaa!K17 -> 0 | F13: =empresa_ccaa!L17 -> 0 | G13: n.a. | H13: 0 | I13: 0 | J13: 0 | L13: -0.07372856605 | M13: 0 | BQ13: =IF(G13="n.a.","n.a.",(G13-D13)*100) -> n.a. | BR13: =empresa_ccaa!M17-empresa_ccaa!H17 ->  | BT13: =IF(BU13=$BU$27,1,0) -> 1 | BU13: =I13 -> 0 | BV13: =A13 -> CANARIAS | BW13: =G13 -> n.a. | BX13: =D13 -> -0.07372856605
A14: CANTABRIA | B14: =empresa_ccaa!F18 -> 25608469.91 | C14: =empresa_ccaa!G18 -> 25321876.48 | D14: -0.0111913533 | E14: =empresa_ccaa!K18 -> 0 | F14: =empresa_ccaa!L18 -> 0 | G14: n.a. | H14: 0 | I14: 0 | J14: 0 | L14: -0.0111913533 | M14: 0 | BQ14: =IF(G14="n.a.","n.a.",(G14-D14)*100) -> n.a. | BR14: =empresa_ccaa!M18-empresa_ccaa!H18 ->  | BT14: =IF(BU14=$BU$27,1,0) -> 1 | BU14: =I14 -> 0 | BV14: =A14 -> CANTABRIA | BW14: =G14 -> n.a. | BX14: =D14 -> -0.0111913533
A15: CASTILLA-LA MANCHA | B15: =empresa_ccaa!F19 -> 40130795.41 | C15: =empresa_ccaa!G19 -> 45181799.94 | D15: 0.125863554 | E15: =empresa_ccaa!K19 -> 0 | F15: =empresa_ccaa!L19 -> 0 | G15: n.a. | H15: 0 | I15: 0 | J15: 0 | L15: 0.125863554 | M15: 0 | BQ15: =IF(G15="n.a.","n.a.",(G15-D15)*100) -> n.a. | BR15: =empresa_ccaa!M19-empresa_ccaa!H19 ->  | BT15: =IF(BU15=$BU$27,1,0) -> 1 | BU15: =I15 -> 0 | BV15: =A15 -> CASTILLA-LA MANCHA | BW15: =G15 -> n.a. | BX15: =D15 -> 0.125863554
A16: CASTILLA Y LEÓN | B16: =empresa_ccaa!F20 -> 59355582.66 | C16: =empresa_ccaa!G20 -> 58093728.43 | D16: -0.02125923412 | E16: =empresa_ccaa!K20 -> 0 | F16: =empresa_ccaa!L20 -> 0 | G16: n.a. | H16: 0 | I16: 0 | J16: =(I16-H16)*100 -> 0 | L16: -0.02125923412 | M16: 0 | BQ16: =IF(G16="n.a.","n.a.",(G16-D16)*100) -> n.a. | BR16: =empresa_ccaa!M20-empresa_ccaa!H20 ->  | BT16: =IF(BU16=$BU$27,1,0) -> 1 | BU16: =I16 -> 0 | BV16: =A16 -> CASTILLA Y LEÓN | BW16: =G16 -> n.a. | BX16: =D16 -> -0.02125923412
A17: CATALUÑA | B17: =empresa_ccaa!F21 -> 234240040.3 | C17: =empresa_ccaa!G21 -> 212206998.4 | D17: -0.09406180863 | E17: =empresa_ccaa!K21 -> 0 | F17: =empresa_ccaa!L21 -> 0 | G17: =IF(E17>0,((F17/E17)-1),"n.a.") -> n.a. | H17: 0 | I17: 0 | J17: =(I17-H17)*100 -> 0 | L17: -0.09406180863 | M17: 0 | BQ17: =IF(G17="n.a.","n.a.",(G17-D17)*100) -> n.a. | BR17: =empresa_ccaa!M21-empresa_ccaa!H21 ->  | BT17: =IF(BU17=$BU$27,1,0) -> 1 | BU17: =I17 -> 0 | BV17: =A17 -> CATALUÑA | BW17: =G17 -> n.a. | BX17: =D17 -> -0.09406180863
A18: COMUNIDAD VALENCIANA | B18: =empresa_ccaa!F22 -> 77594955.77 | C18: =empresa_ccaa!G22 -> 73474045.2 | D18: -0.05310796989 | E18: =empresa_ccaa!K22 -> 0 | F18: =empresa_ccaa!L22 -> 0 | G18: n.a. | H18: 0 | I18: 0 | J18: =(I18-H18)*100 -> 0 | L18: -0.05310796989 | M18: 0 | BQ18: =IF(G18="n.a.","n.a.",(G18-D18)*100) -> n.a. | BR18: =empresa_ccaa!M22-empresa_ccaa!H22 ->  | BT18: =IF(BU18=$BU$27,1,0) -> 1 | BU18: =I18 -> 0 | BV18: =A18 -> COMUNIDAD VALENCIANA | BW18: =G18 -> n.a. | BX18: =D18 -> -0.05310796989
A19: EXTREMADURA | B19: =empresa_ccaa!F23 -> 5920073.808 | C19: =empresa_ccaa!G23 -> 6287678.53 | D19: 0.062094618 | E19: =empresa_ccaa!K23 -> 0 | F19: =empresa_ccaa!L23 -> 0 | G19: n.a. | H19: 0 | I19: 0 | J19: 0 | L19: 0.062094618 | M19: 0 | BQ19: =IF(G19="n.a.","n.a.",(G19-D19)*100) -> n.a. | BR19: =empresa_ccaa!M23-empresa_ccaa!H23 ->  | BT19: =IF(BU19=$BU$27,1,0) -> 1 | BU19: =I19 -> 0 | BV19: =A19 -> EXTREMADURA | BW19: =G19 -> n.a. | BX19: =D19 -> 0.062094618
A20: GALICIA | B20: =empresa_ccaa!F24 -> 50166944.46 | C20: =empresa_ccaa!G24 -> 55599149.85 | D20: 0.1082825642 | E20: =empresa_ccaa!K24 -> 0 | F20: =empresa_ccaa!L24 -> 0 | G20: n.a. | H20: 0 | I20: 0 | J20: 0 | L20: 0.1082825642 | M20: 0 | BQ20: =IF(G20="n.a.","n.a.",(G20-D20)*100) -> n.a. | BR20: =empresa_ccaa!M24-empresa_ccaa!H24 ->  | BT20: =IF(BU20=$BU$27,1,0) -> 1 | BU20: =I20 -> 0 | BV20: =A20 -> GALICIA | BW20: =G20 -> n.a. | BX20: =D20 -> 0.1082825642
A21: MADRID | B21: =empresa_ccaa!F25 -> 154334683 | C21: =empresa_ccaa!G25 -> 148411946.8 | D21: -0.03837592486 | E21: =empresa_ccaa!K25 -> 0 | F21: =empresa_ccaa!L25 -> 0 | G21: n.a. | H21: 0 | I21: 0 | J21: 0 | L21: -0.03837592486 | M21: 0 | BQ21: =IF(G21="n.a.","n.a.",(G21-D21)*100) -> n.a. | BR21: =empresa_ccaa!M25-empresa_ccaa!H25 ->  | BT21: =IF(BU21=$BU$27,1,0) -> 1 | BU21: =I21 -> 0 | BV21: =A21 -> MADRID | BW21: =G21 -> n.a. | BX21: =D21 -> -0.03837592486
A22: MURCIA | B22: =empresa_ccaa!F26 -> 50948107.15 | C22: =empresa_ccaa!G26 -> 54358417.4 | D22: 0.06693693728 | E22: =empresa_ccaa!K26 -> 0 | F22: =empresa_ccaa!L26 -> 0 | G22: n.a. | H22: 0 | I22: 0 | J22: 0 | L22: 0.06693693728 | M22: 0 | BQ22: =IF(G22="n.a.","n.a.",(G22-D22)*100) -> n.a. | BR22: =empresa_ccaa!M26-empresa_ccaa!H26 ->  | BT22: =IF(BU22=$BU$27,1,0) -> 1 | BU22: =I22 -> 0 | BV22: =A22 -> MURCIA | BW22: =G22 -> n.a. | BX22: =D22 -> 0.06693693728
A23: NAVARRA | B23: =empresa_ccaa!F27 -> 35391817.6 | C23: =empresa_ccaa!G27 -> 32785620.26 | D23: -0.0736384146 | E23: =empresa_ccaa!K27 -> 0 | F23: =empresa_ccaa!L27 -> 0 | G23: n.a. | H23: 0 | I23: 0 | J23: 0 | L23: -0.0736384146 | M23: 0 | BQ23: =IF(G23="n.a.","n.a.",(G23-D23)*100) -> n.a. | BR23: =empresa_ccaa!M27-empresa_ccaa!H27 ->  | BT23: =IF(BU23=$BU$27,1,0) -> 1 | BU23: =I23 -> 0 | BV23: =A23 -> NAVARRA | BW23: =G23 -> n.a. | BX23: =D23 -> -0.0736384146
A24: PAIS VASCO | B24: =empresa_ccaa!F28 -> 47389826.43 | C24: =empresa_ccaa!G28 -> 39441857.38 | D24: -0.1677146689 | E24: =empresa_ccaa!K28 -> 0 | F24: =empresa_ccaa!L28 -> 0 | G24: n.a. | H24: 0 | I24: 0 | J24: 0 | L24: -0.1677146689 | M24: 0 | BQ24: =IF(G24="n.a.","n.a.",(G24-D24)*100) -> n.a. | BR24: =empresa_ccaa!M28-empresa_ccaa!H28 ->  | BT24: =IF(BU24=$BU$27,1,0) -> 1 | BU24: =I24 -> 0 | BV24: =A24 -> PAIS VASCO | BW24: =G24 -> n.a. | BX24: =D24 -> -0.1677146689
A25: RIOJA (LA) | B25: =empresa_ccaa!F29 -> 8576898.77 | C25: =empresa_ccaa!G29 -> 7934417.797 | D25: -0.07490830785 | E25: =empresa_ccaa!K29 -> 0 | F25: =empresa_ccaa!L29 -> 0 | G25: n.a. | H25: 0 | I25: 0 | J25: 0 | L25: -0.07490830785 | M25: 0 | BQ25: =IF(G25="n.a.","n.a.",(G25-D25)*100) -> n.a. | BR25: =empresa_ccaa!M29-empresa_ccaa!H29 ->  | BT25: =IF(BU25=$BU$27,1,0) -> 1 | BU25: =I25 -> 0 | BV25: =A25 -> RIOJA (LA) | BW25: =G25 -> n.a. | BX25: =D25 -> -0.07490830785
BT26: codifico=1 | BU26: máximo
BT27: =DMAX(BT8:BV25,BU8,BT8:BT25)*1 -> 0 | BU27: =MAX(BU9:BU25) -> 0
J28: =I6 -> Cuota de Facturación | BS28: geo data | BT28: =VLOOKUP(1,BT8:BX25,3,0) -> ANDALUCIA
M29: =I7 -> 2020 | BT29: el dato a buscar debe estar en la primera columna.
B30: % i.a. | F30: % i.a. | BT30: =VLOOKUP(1,BT8:BX25,4,0)*1 -> 
B31: =C7 -> 2020 | F31: =B31 -> 2020 | BT31: =VLOOKUP(1,BT8:BX25,5,0)*1 -> 0.0583246928
B32: Total | F32: Empresa | J32: =J5 -> iEMPRESA
M33: Ámbito
A34: Ámbito | B34: =F34 -> Nacional | F34: =J34 -> Nacional | J34: Nacional | M34: Nacional
J38: =BT28 -> ANDALUCIA | M38: CCAA
M39: Líder para la
B40: % i.a. | F40: % i.a. | M40: Empresa
B41: =B31 -> 2020 | F41: =B41 -> 2020
B42: Total | F42: Empresa | J42: =J32 -> iEMPRESA
A44: Ámbito | B44: =F44 -> ANDALUCIA | F44: =J44 -> ANDALUCIA | J44: =J38 -> ANDALUCIA
A48: Fuente: Cifras consolidadas del sector. Valores absolutos 2015-2020 y cifras de evolución de 2016 a la fecha. ASEMPLEO ©.
A49: Nota de Confidencialidad: Este informe comparativo contiene datos redondeados que son ficticeos y serán reemplazados por los que la Empresa introduzca en "empresa_ccaa".

Sheet Ayuda y Version (hidden)
G2: Versión de plantilla: | H2: 2.5

Sheet pBlock (hidden)
B4: Block Test
B5: Info1 | C5: Info2

Sheet pAccel0 (hidden)
A1: Gauge Configuration | O1: Gauge Configuration | Z1: Gauge Configuration | AK1: Gauge Configuration
F2: Decal | T2: Decal | AE2: Decal | AP2: Decal
A3: Title: | B3: =Dashboard!#REF! ->  | F3: 0 | O3: Title: | P3: =pAccel0!B3 ->  | T3: 0 | Z3: Title: | AA3: Empresa | AE3: 0 | AK3: Title: | AL3: CCAA | AP3: 0
A4: Real Value: | B4: =Dashboard!#REF! ->  | O4: Real Value: | P4: =Dashboard!I8 -> 0 | Z4: Real Value: | AA4: =Dashboard!I8 -> 0 | AK4: Real Value: | AL4: =Dashboard!BT27 -> 0
A6: Color bands | O6: Color bands | Z6: Color bands | AK6: Color bands
A7: Red: | B7: 2 | O7: Red: | P7: 2 | Z7: Red: | AA7: 2 | AK7: Red: | AL7: 2
A8: Yellow: | B8: 15 | O8: Yellow: | P8: 15 | Z8: Yellow: | AA8: 15 | AK8: Yellow: | AL8: 15
A9: Green: | B9: 23 | O9: Green: | P9: 23 | Z9: Green: | AA9: 23 | AK9: Green: | AL9: 23
A11: Advanced Parameters | O11: Advanced Parameters | Z11: Advanced Parameters | AK11: Advanced Parameters
B12: Value to 100% | C12: =IF(ISERROR((B4-F3/100)*B27),0,(B4-F3/100)*B27) -> 0 | P12: Value to 100% | Q12: =IF(ISERROR((P4-T3/100)*P27),0,(P4-T3/100)*P27) -> 0 | AA12: Value to 100% | AB12: =IF(ISERROR((AA4-AE3/100)*AA27),0,(AA4-AE3/100)*AA27) -> 0 | AL12: Value to 100% | AM12: =IF(ISERROR((AL4-AP3/100)*AL27),0,(AL4-AP3/100)*AL27) -> 0
B13: Relative value | C13: =IF(C12>100%,102%,IF(C12<0%,-2%,C12))*1.506-0.253 -> -0.253 | P13: Relative value | Q13: =IF(Q12>100%,102%,IF(Q12<0%,-2%,Q12))*1.506-0.253 -> -0.253 | AA13: Relative value | AB13: =IF(AB12>100%,102%,IF(AB12<0%,-2%,AB12))*1.506-0.253 -> -0.253 | AL13: Relative value | AM13: =IF(AM12>100%,102%,IF(AM12<0%,-2%,AM12))*1.506-0.253 -> -0.253
A15: Angle | C15: =C13*PI() -> -0.7948229414 | O15: Angle | Q15: =Q13*PI() -> -0.7948229414 | Z15: Angle | AB15: =AB13*PI() -> -0.7948229414 | AK15: Angle | AM15: =AM13*PI() -> -0.7948229414
A16: x | B16: 0 | C16: =-COS(C15) -> -0.7004111508 | O16: x | P16: 0 | Q16: =-COS(Q15) -> -0.7004111508 | Z16: x | AA16: 0 | AB16: =-COS(AB15) -> -0.7004111508 | AK16: x | AL16: 0 | AM16: =-COS(AM15) -> -0.7004111508
A17: y | B17: 0 | C17: =SIN(C15) -> -0.7137396023 | O17: y | P17: 0 | Q17: =SIN(Q15) -> -0.7137396023 | Z17: y | AA17: 0 | AB17: =SIN(AB15) -> -0.7137396023 | AK17: y | AL17: 0 | AM17: =SIN(AM15) -> -0.7137396023
D19: Value | E19: Label | R19: Value | S19: Label | AC19: Value | AD19: Label | AN19: Value | AO19: Label
C20: 70 | D20: 10 | E20: =B26+F3 -> 4 | Q20: 70 | R20: 10 | S20: =P26+T3 -> 4 | AB20: 70 | AC20: 10 | AD20: =AA26+AE3 -> 4 | AM20: 70 | AN20: 10 | AO20: =AL26+AP3 -> 4
C21: =B7*$C$20/$B$25 -> 3.5 | D21: 10 | E21: =E20+$B$26 -> 8 | Q21: =P7*$C$20/$B$25 -> 3.5 | R21: 10 | S21: =S20+$B$26 -> 8 | AB21: =AA7*$AB$20/$AA$25 -> 3.5 | AC21: 10 | AD21: =AD20+$AA$26 -> 8 | AM21: =AL7*$AM$20/$AL$25 -> 3.5 | AN21: 10 | AO21: =AO20+$AL$26 -> 8
C22: =B8*$C$20/$B$25 -> 26.25 | D22: 10 | E22: 12 | Q22: =P8*$C$20/$B$25 -> 26.25 | R22: 10 | S22: 12 | AB22: =AA8*$AB$20/$AA$25 -> 26.25 | AC22: 10 | AD22: 12 | AM22: =AL8*$AM$20/$AL$25 -> 26.25 | AN22: 10 | AO22: =AO21+$AL$26 -> 12
C23: =B9*$C$20/$B$25 -> 40.25 | D23: 10 | E23: 16 | Q23: =P9*$C$20/$B$25 -> 40.25 | R23: 10 | S23: 16 | AB23: =AA9*$AB$20/$AA$25 -> 40.25 | AC23: 10 | AD23: 16 | AM23: 40.25 | AN23: 10 | AO23: 16
A24: White | C24: 23 | D24: 10 | E24: 20 | O24: White | Q24: 23 | R24: 10 | S24: 20 | Z24: White | AB24: 23 | AC24: 10 | AD24: 20 | AK24: White | AM24: 23 | AN24: 10 | AO24: 20
A25: Total | B25: =SUM(B7:B24) -> 40 | C25: =SUM(C21:C24) -> 93 | D25: 10 | E25: 24 | O25: Total | P25: =SUM(P7:P24) -> 40 | Q25: =SUM(Q21:Q24) -> 93 | R25: 10 | S25: 24 | Z25: Total | AA25: =SUM(AA7:AA24) -> 40 | AB25: =SUM(AB21:AB24) -> 93 | AC25: 10 | AD25: 24 | AK25: Total | AL25: =SUM(AL7:AL24) -> 40 | AM25: =SUM(AM21:AM24) -> 93 | AN25: 10 | AO25: 24
A26: Increment | B26: =B25/10 -> 4 | D26: 10 | E26: 28 | O26: Increment | P26: =P25/10 -> 4 | R26: 10 | S26: 28 | Z26: Increment | AA26: =AA25/10 -> 4 | AC26: 10 | AD26: 28 | AK26: Increment | AL26: =AL25/10 -> 4 | AN26: 10 | AO26: 28
A27: Conversion | B27: =100/B25 -> 2.5 | D27: 10 | E27: 32 | O27: Conversion | P27: =100/P25 -> 2.5 | R27: 10 | S27: 32 | Z27: Conversion | AA27: =100/AA25 -> 2.5 | AC27: 10 | AD27: 32 | AK27: Conversion | AL27: =100/AL25 -> 2.5 | AN27: 10 | AO27: 32
D28: 10 | E28: 36 | R28: 10 | S28: 36 | AC28: 10 | AD28: 36 | AN28: 10 | AO28: 36
D29: 10 | E29: 40 | R29: 10 | S29: 40 | AC29: 10 | AD29: 40 | AN29: 10 | AO29: 40
D30: 33 | E30: =F3 -> 0 | R30: 33 | S30: =T3 -> 0 | AC30: 33 | AD30: =AE3 -> 0 | AN30: 33 | AO30: =AP3 -> 0

Sheet pAccel1 (hidden)
A1: Gauge Configuration | Q1: Gauge Configuration | X1: Gauge Configuration | AE1: Gauge Configuration | AL1: Gauge Configuration | AS1: Gauge Configuration | AZ1: Gauge Configuration | BG1: Gauge Configuration
F2: Decal | V2: Decal | AC2: Decal | AJ2: Decal | AQ2: Decal | AX2: Decal | BE2: Decal | BL2: Decal
A3: Title: | B3: CPDs | F3: 100 | Q3: Title: | R3: Facturación | V3: 100 | X3: Title: | Y3: CPDs | AC3: 100 | AE3: Title: | AF3: Facturación | AJ3: 100 | AL3: Title: | AM3: Facturación | AQ3: 100 | AS3: Title: | AT3: Facturación | AX3: 100 | AZ3: Title: | BA3: Facturación | BE3: 100 | BG3: Title: | BH3: Facturación | BL3: 100
A4: Real Value: | B4: =Dashboard!#REF! ->  | C4: =Dashboard!#REF! ->  | Q4: Real Value: | R4: =Dashboard!#REF! ->  | X4: Real Value: | Y4: =Dashboard!#REF! ->  | AE4: Real Value: | AF4: =Dashboard!#REF! ->  | AL4: Real Value: | AM4: =Dashboard!D8 -> -0.03150655587 | AS4: Real Value: | AT4: =Dashboard!$G$8 -> n.a. | AZ4: Real Value: | BA4: =Dashboard!BT31 -> 0.0583246928 | BG4: Real Value: | BH4: =Dashboard!BT30 -> 
A6: Color bands
A7: Red: | B7: -50
A8: Yellow: | B8: 0
A9: Green: | B9: 50
A11: Advanced Parameters | Q11: Advanced Parameters | X11: Advanced Parameters | AE11: Advanced Parameters | AL11: Advanced Parameters | AS11: Advanced Parameters | AZ11: Advanced Parameters | BG11: Advanced Parameters
B12: Value to 100% | C12: =IF(ISERROR((B4-F3/100)*B27),0,(B4-F3/100)*B27) -> 0 | E12: =IF(ISERROR((C4-F3/100)*B27),0,(C4-F3/100)*B27) -> 0 | R12: Value to 100% | S12: =IF(ISERROR((R4-V3/100)*R27),0,(R4-V3/100)*R27) -> 0 | Y12: Value to 100% | Z12: =IF(ISERROR((Y4-AC3/100)*Y27),0,(Y4-AC3/100)*Y27) -> 0 | AF12: Value to 100% | AG12: =IF(ISERROR((AF4-AJ3/100)*AF27),0,(AF4-AJ3/100)*AF27) -> 0 | AM12: Value to 100% | AN12: =IF(ISERROR((AM4-AQ3/100)*AM27),0,(AM4-AQ3/100)*AM27) -> -2.063013112 | AT12: Value to 100% | AU12: =IF(ISERROR((AT4-AX3/100)*AT27),0,(AT4-AX3/100)*AT27) -> 0 | BA12: Value to 100% | BB12: =IF(ISERROR((BA4-BE3/100)*BA27),0,(BA4-BE3/100)*BA27) -> -1.883350614 | BH12: Value to 100% | BI12: =IF(ISERROR((BH4-BL3/100)*BH27),0,(BH4-BL3/100)*BH27) -> 0
B13: Relative value | C13: =IF(B4<-100%,-100%,IF(B4>100%,100%,2*B4/1)) ->  | D13: ojo1, todo en porcentaje, por 2, y con 1 al final en lugar de 100. | E13: =IF(C4<-100%,-100%,IF(C4>100%,100%,2*C4/1)) ->  | I13: Todos los negritas tienen dato 50, en lugar de 100 para que la escala recorra menos. | R13: Relative value | S13: =IF(R4<-100%,-100%,IF(R4>100%,100%,2*R4/1)) ->  | Y13: Relative value | Z13: =IF(Y4<-100%,-100%,IF(Y4>100%,100%,2*Y4/1)) ->  | AF13: Relative value | AG13: =IF(AF4<-100%,-100%,IF(AF4>100%,100%,2*AF4/1)) ->  | AM13: Relative value | AN13: =IF(AM4<-100%,-100%,IF(AM4>100%,100%,2*AM4/1)) -> -0.06301311173 | AT13: Relative value | AU13: =IF(AT4<-100%,-100%,IF(AT4>100%,100%,2*AT4/1)) -> 1 | BA13: Relative value | BB13: =IF(BA4<-100%,-100%,IF(BA4>100%,100%,2*BA4/1)) -> 0.1166493856 | BH13: Relative value | BI13: =IF(BH4<-100%,-100%,IF(BH4>100%,100%,2*BH4/1)) -> 
A15: Angle | C15: =C13*PI()/2 ->  | E15: =E13*PI()/2 ->  | Q15: Angle | S15: =S13*PI()/2 ->  | X15: Angle | Z15: =Z13*PI()/2 ->  | AE15: Angle | AG15: =AG13*PI()/2 ->  | AL15: Angle | AN15: =AN13*PI()/2 -> -0.09898076445 | AS15: Angle | AU15: =AU13*PI()/2 -> 1.570796327 | AZ15: Angle | BB15: =BB13*PI()/2 -> 0.1832324264 | BG15: Angle | BI15: =BI13*PI()/2 -> 
A16: x | B16: 0 | C16: =SIN(C15) ->  | D16: =B16 -> 0 | E16: =SIN(E15) ->  | Q16: x | R16: 0 | S16: =SIN(S15) ->  | X16: x | Y16: 0 | Z16: =SIN(Z15) ->  | AE16: x | AF16: 0 | AG16: =SIN(AG15) ->  | AL16: x | AM16: 0 | AN16: =SIN(AN15) -> -0.09881922135 | AS16: x | AT16: 0 | AU16: =SIN(AU15) -> 1 | AZ16: x | BA16: 0 | BB16: =SIN(BB15) -> 0.1822088349 | BG16: x | BH16: 0 | BI16: =SIN(BI15) -> 
A17: y | B17: 0 | C17: =-COS(C15) ->  | D17: =B17 -> 0 | E17: =-COS(E15) ->  | Q17: y | R17: 0 | S17: =-COS(S15) ->  | X17: y | Y17: 0 | Z17: =-COS(Z15) ->  | AE17: y | AF17: 0 | AG17: =-COS(AG15) ->  | AL17: y | AM17: 0 | AN17: =-COS(AN15) -> -0.9951054022 | AS17: y | AT17: 0 | AU17: =-COS(AU15) -> -6.125742275e-17 | AZ17: y | BA17: 0 | BB17: =-COS(BB15) -> -0.983259854 | BG17: y | BH17: 0 | BI17: =-COS(BI15) -> 
D19: Value | E19: Label
C20: 50 | D20: 0 | E20: 50
C21: =E21 -> 40 | D21: =D31/D33 -> 5 | E21: =E20+$B$26 -> 40
C22: =E22 -> 30 | D22: =D21 -> 5 | E22: =E21+$B$26 -> 30
C23: 20 | D23: =D22 -> 5 | E23: 20
A24: White | C24: 10 | D24: 5 | E24: 10 | Q24: White | X24: White | AE24: White | AL24: White | AS24: White | AZ24: White | BG24: White
A25: Total | B25: 50 | C25: 0 | D25: 5 | E25: 0 | Q25: Total | R25: 50 | X25: Total | Y25: 50 | AE25: Total | AF25: 50 | AL25: Total | AM25: 50 | AS25: Total | AT25: 50 | AZ25: Total | BA25: 50 | BG25: Total | BH25: 50
A26: Increment | B26: -10 | C26: -10 | D26: 5 | E26: -10 | Q26: Increment | R26: -10 | X26: Increment | Y26: -10 | AE26: Increment | AF26: -10 | AL26: Increment | AM26: -10 | AS26: Increment | AT26: -10 | AZ26: Increment | BA26: -10 | BG26: Increment | BH26: -10
A27: Conversion | B27: =100/B25 -> 2 | C27: -20 | D27: 5 | E27: -20 | Q27: Conversion | R27: =100/R25 -> 2 | X27: Conversion | Y27: =100/Y25 -> 2 | AE27: Conversion | AF27: =100/AF25 -> 2 | AL27: Conversion | AM27: =100/AM25 -> 2 | AS27: Conversion | AT27: =100/AT25 -> 2 | AZ27: Conversion | BA27: =100/BA25 -> 2 | BG27: Conversion | BH27: =100/BH25 -> 2
C28: -30 | D28: 5 | E28: -30
C29: -40 | D29: 5 | E29: -40
C30: -50 | D30: 5 | E30: -50
D31: 50
D33: 10
D35: =SUM(D20:D30) -> 50

Sheet empresa_ccaa
M3: =Dashboard!M3 -> 2020
M4: =Dashboard!M4 -> MARZO
K5: Empresa | L5: =L9 -> iEMPRESA
C9: Facturación, € | F9: ASEMPLEO | G9: ASEMPLEO | K9: Empresa = | L9: iEMPRESA
C10: Dato acumulado a | E10: =M4 -> MARZO | F10: =Dashboard!B7 -> 2019 | G10: =Dashboard!C7 -> 2020 | J10: Facturación | K10: =F10 -> 2019 | L10: =G10 -> 2020
H11: Estructura (%) | J11: Datos acumulados | M11: Estructura (%) | N11: check
F12: =E135 -> 956636711.5 | G12: =B135 -> 926496383.5 | H12: =G12/G$12 -> 1 | I12: TOTAL | K12: =SUM(K13:K29) -> 0 | L12: =SUM(L13:L29) -> 0 | M12: =L12/L$12 ->  | N12: =L12/K12-1 -> 
F13: =E136 -> 76824679.4 | G13: =B136 -> 81305455.23 | H13: =G13/G$12 -> 0.08775582579 | I13: ANDALUCIA | M13: =L13/L$12 ->  | N13: =L13/K13-1 -> 
F14: =E137 -> 48071293.51 | G14: =B137 -> 46086017.1 | H14: =G14/G$12 -> 0.04974225256 | I14: ARAGON | M14: =L14/L$12 -> 
F15: =E138 -> 16162698.79 | G15: =B138 -> 16469333.91 | H15: 0.01777592897 | I15: ASTURIAS | M15: =L15/L$12 -> 
F16: =E139 -> 3227670.662 | G16: =B139 -> 2518928.315 | H16: 0.002718767563 | I16: BALEARES
F17: =E140 -> 22692173.91 | G17: =B140 -> 21019112.46 | H17: 0.02268666434 | I17: CANARIAS
F18: =E141 -> 25608469.91 | G18: =B141 -> 25321876.48 | H18: 0.02733078826 | I18: CANTABRIA
F19: =E142 -> 40130795.41 | G19: =B142 -> 45181799.94 | H19: 0.0487662993 | I19: CASTILLA-LA MANCHA
F20: =E143 -> 59355582.66 | G20: =B143 -> 58093728.43 | H20: 0.062702596 | I20: CASTILLA Y LEÓN
F21: =E144 -> 234240040.3 | G21: =B144 -> 212206998.4 | H21: 0.2290424466 | I21: CATALUÑA | M21: =L21/L$12 -> 
F22: =E145 -> 77594955.77 | G22: =B145 -> 73474045.2 | H22: 0.07930311063 | I22: COMUNIDAD VALENCIANA
F23: =E146 -> 5920073.808 | G23: =B146 -> 6287678.53 | H23: 0.006786511682 | I23: EXTREMADURA
F24: =E147 -> 50166944.46 | G24: =B147 -> 55599149.85 | H24: 0.06001010995 | I24: GALICIA
F25: =E148 -> 154334683 | G25: =B148 -> 148411946.8 | H25: 0.1601862127 | I25: MADRID
F26: =E149 -> 50948107.15 | G26: =B149 -> 54358417.4 | H26: 0.05867094397 | I26: MURCIA
F27: =E150 -> 35391817.6 | G27: =B150 -> 32785620.26 | H27: 0.03538666836 | I27: NAVARRA
F28: =E151 -> 47389826.43 | G28: =B151 -> 39441857.38 | H28: 0.04257097824 | I28: PAIS VASCO
F29: =E152 -> 8576898.77 | G29: =B152 -> 7934417.797 | H29: 0.008563895055 | I29: RIOJA (LA)
A31: Fuente: Cifras consolidadas del sector. ASEMPLEO ©.
A32: Nota de Confidencialidad: Este informe comparativo se genera con los datos propios de la Empresa.
A130: D03: | D130: D03: | G130: D03 : | H130: Variación Interanual (%)
A131: MES: | B131: ACUMULADO A LA FECHA | D131: =A131 -> MES: | E131: =B131 -> ACUMULADO A LA FECHA | G131: =D131 -> MES: | H131: Tasa % i.a.
B133: Facturación | E133: Facturación | H133: Facturación
I134: check
A135: TOTAL | B135: 926496383.5 | D135: TOTAL | E135: 956636711.5 | G135: TOTAL | H135: -0.03150655587 | I135: =B135/E135-1 -> -0.03150655587
A136: ANDALUCIA | B136: 81305455.23 | D136: ANDALUCIA | E136: 76824679.4 | G136: ANDALUCIA | H136: 0.0583246928 | I136: =B136/E136-1 -> 0.0583246928
A137: ARAGON | B137: 46086017.1 | D137: ARAGON | E137: 48071293.51 | G137: ARAGON | H137: -0.0412985851 | I137: -0.0412985851
A138: ASTURIAS | B138: 16469333.91 | D138: ASTURIAS | E138: 16162698.79 | G138: ASTURIAS | H138: 0.01897177724 | I138: 0.01897177724
A139: BALEARES | B139: 2518928.315 | D139: BALEARES | E139: 3227670.662 | G139: BALEARES | H139: -0.2195832295 | I139: -0.2195832295
A140: CANARIAS | B140: 21019112.46 | D140: CANARIAS | E140: 22692173.91 | G140: CANARIAS | H140: -0.07372856605 | I140: -0.07372856605
A141: CANTABRIA | B141: 25321876.48 | D141: CANTABRIA | E141: 25608469.91 | G141: CANTABRIA | H141: -0.0111913533 | I141: -0.0111913533
A142: CASTILLA-LA MANCHA | B142: 45181799.94 | D142: CASTILLA-LA MANCHA | E142: 40130795.41 | G142: CASTILLA-LA MANCHA | H142: 0.125863554 | I142: 0.125863554
A143: CASTILLA Y LEÓN | B143: 58093728.43 | D143: CASTILLA Y LEÓN | E143: 59355582.66 | G143: CASTILLA Y LEÓN | H143: -0.02125923412 | I143: -0.02125923412
A144: CATALUÑA | B144: 212206998.4 | D144: CATALUÑA | E144: 234240040.3 | G144: CATALUÑA | H144: -0.09406180863 | I144: -0.09406180863
A145: COMUNIDAD VALENCIANA | B145: 73474045.2 | D145: COMUNIDAD VALENCIANA | E145: 77594955.77 | G145: COMUNIDAD VALENCIANA | H145: -0.05310796989 | I145: -0.05310796989
A146: EXTREMADURA | B146: 6287678.53 | D146: EXTREMADURA | E146: 5920073.808 | G146: EXTREMADURA | H146: 0.062094618 | I146: 0.062094618
A147: GALICIA | B147: 55599149.85 | D147: GALICIA | E147: 50166944.46 | G147: GALICIA | H147: 0.1082825642 | I147: 0.1082825642
A148: MADRID | B148: 148411946.8 | D148: MADRID | E148: 154334683 | G148: MADRID | H148: -0.03837592486 | I148: -0.03837592486
A149: MURCIA | B149: 54358417.4 | D149: MURCIA | E149: 50948107.15 | G149: MURCIA | H149: 0.06693693728 | I149: 0.06693693728
A150: NAVARRA | B150: 32785620.26 | D150: NAVARRA | E150: 35391817.6 | G150: NAVARRA | H150: -0.0736384146 | I150: -0.0736384146
A151: PAIS VASCO | B151: 39441857.38 | D151: PAIS VASCO | E151: 47389826.43 | G151: PAIS VASCO | H151: -0.1677146689 | I151: -0.1677146689
A152: RIOJA (LA) | B152: 7934417.797 | D152: RIOJA (LA) | E152: 8576898.77 | G152: RIOJA (LA) | H152: -0.07490830785 | I152: =B152/E152-1 -> -0.07490830785
A153: Ceuta y Melilla | D153: Ceuta y Melilla | G153: Ceuta y Melilla
